bitfinex/quotes_ETHUSD_20260114
["timestamp","ask_amount","ask_price","bid_price","bid_amount"]
[1768420132520,0.002,3369.1,3368.6,2.75009404]
[1768420132880,0.002,3369.1,3368.6,2.72040812]
[1768420133722,0.002,3369.1,3368.2,2.72040812]
[1768420134012,0.002,3369.1,3368.3,3.32905771]
[1768420134196,0.002,3369.1,3368.4,2.72040812]
[1768420134379,0.002,3369.1,3368.6,2.72040812]
[1768420134886,0.002,3369.1,3368.7,2.75009316]
[1768420135396,0.002,3369.1,3368.7,2.72040812]
[1768420135614,0.002,3369.1,3368.8,2.99244893]
[1768420139610,0.002,3369.1,3368.5,2.72040812]
[1768420142512,0.002,3368.8,3368.5,2.72040812]
[1768420142718,0.002,3368.8,3368.6,2.72040812]
[1768420143129,0.002,3369.1,3368.8,2.72040812]
[1768420144337,0.002,3369.1,3368.9,2.72040812]
[1768420144534,0.002,3369.4,3369.1,2.72040812]
[1768420144854,3.32349734,3370.2,3369.1,2.72040812]
[1768420145145,6.29072253,3370.2,3369.3,2.72040812]
[1768420149539,0.35627215,3370.2,3369.4,2.72040812]
[1768420149735,3.32346113,3370.2,3369.4,2.72040812]
[1768420149940,3.32346113,3370.2,3369.5,3.2892501]
[1768420150954,3.32346165,3370.2,3369.5,3.2892501]
[1768420151155,0.35627215,3370.2,3369.5,3.2892501]
[1768420151365,0.35627215,3370.2,3369.6,0.02967711]
[1768420151730,0.35627215,3370.2,3369.6,2.75008523]
[1768420151961,0.35627215,3370.2,3369.7,3.87679882]
[1768420153764,0.002,3371.0,3370.2,2.72040812]
[1768420154061,0.002,3371.0,3370.1,5.27719231]
[1768420154062,0.002,3371.0,3370.5,2.72040812]
[1768420154382,0.002,3371.0,3370.6,3.52016816]
[1768420155372,0.002,3371.0,3370.6,0.79976004]
[1768420155587,0.002,3371.0,3370.3,2.72040812]
[1768420157459,0.002,3371.0,3370.4,2.72040812]
[1768420159559,2.66731889,3371.0,3369.7,3.87679882]
[1768420159764,2.66531889,3370.8,3369.7,2.72040812]
[1768420159962,2.66531889,3370.8,3369.7,5.68795796]
[1768420160581,2.96674281,3370.7,3369.7,5.68795796]
[1768420160788,5.63201223,3370.8,3369.7,5.68795796]
[1768420161080,2.96669334,3370.8,3369.8,2.65877436]
[1768420161285,2.96669334,3370.8,3370.0,2.65877436]
[1768420161794,0.002,3371.0,3370.2,2.58426869]
[1768420161966,0.002,3371.0,3370.3,0.02967094]
[1768420162159,2.96849577,3371.0,3370.2,2.58426869]
[1768420162657,5.93499154,3371.0,3369.9,3.48326343]
[1768420162858,2.96849577,3371.0,3370.0,3.52609546]
[1768420163058,2.96849577,3371.0,3370.0,2.58426869]
[1768420163462,5.93499154,3371.0,3370.0,2.58426869]
[1768420163983,8.64991714,3371.0,3370.0,2.58426869]
[1768420164189,5.68342137,3371.0,3370.0,2.58426869]
[1768420164560,2.96849577,3371.0,3370.1,2.6139414]
[1768420164899,2.96849577,3371.0,3370.2,2.84566283]
[1768420164900,0.002,3371.0,3370.2,2.84566283]
[1768420165389,0.002,3371.0,3370.4,2.58426869]
[1768420165593,0.002,3371.0,3370.2,0.26139414]
[1768420165594,0.002,3371.0,3370.6,2.58426869]
[1768420165762,0.002,3371.0,3370.7,2.61393611]
[1768420165958,0.002,3371.3,3370.7,2.58426869]
[1768420166182,0.002,3371.3,3370.8,2.84269556]
[1768420166657,0.002,3371.3,3371.0,2.58426869]
[1768420166858,0.002,3371.6,3371.0,2.58426869]
[1768420167114,0.002,3371.9,3371.5,2.58426869]
[1768420169190,0.002,3371.9,3371.6,2.58426869]
[1768420169416,0.002,3372.3,3371.7,3.1392984]
[1768420170067,0.002,3372.3,3371.7,2.58426869]
[1768420172193,0.002,3372.3,3371.9,2.58426869]
[1768420172564,0.0294,3372.7,3371.9,2.58426869]
[1768420173610,2.9943956,3372.7,3371.8,3.89]
[1768420173992,2.9943956,3372.7,3371.8,6.47426869]
[1768420174193,2.9943956,3372.7,3372.0,2.58426869]
[1768420174194,0.0294,3372.7,3372.0,2.58426869]
[1768420174396,0.0294,3372.7,3372.0,2.98026869]
[1768420174823,2.96646983,3373.3,3372.6,2.58426869]
[1768420175192,0.002,3373.3,3372.6,2.58426869]
[1768420175392,0.002,3373.3,3372.7,2.84269556]
[1768420176316,0.002,3373.3,3372.7,0.25842687]
[1768420176523,2.7169256,3373.3,3372.2,2.96537437]
[1768420176814,2.7169256,3373.3,3372.5,2.965158]
[1768420177016,0.002,3373.3,3372.4,2.58426869]
[1768420177186,0.002,3373.3,3372.6,5.54929113]
[1768420177389,2.96384113,3374.0,3372.9,2.58426869]
[1768420177614,2.7149256,3374.1,3372.9,2.84269556]
[1768420178920,2.7149256,3373.9,3372.9,0.25842687]
[1768420179597,2.7149256,3373.7,3371.3,2.58426869]
[1768420179797,2.7149256,3373.5,3372.1,2.96551056]
[1768420180205,2.7149256,3373.5,3372.5,0.001]
[1768420180404,2.7149256,3373.3,3372.5,0.001]
[1768420181404,2.7149256,3373.1,3371.7,2.58426869]
[1768420181626,2.7149256,3372.8,3371.4,5.94636188]
[1768420181932,2.7149256,3372.8,3371.5,2.96603116]
[1768420182128,2.7149256,3372.8,3371.5,5.55029985]
[1768420182327,2.7149256,3372.8,3371.6,0.89124917]
[1768420182921,2.7149256,3372.8,3371.7,2.58426869]
[1768420184012,2.96498354,3372.7,3371.7,2.58426869]
[1768420184327,5.92996708,3372.7,3371.7,2.58426869]
[1768420184625,8.64489268,3372.7,3371.6,0.89124917]
[1768420184926,8.64489268,3372.7,3371.5,0.396]
[1768420185327,8.64489268,3372.7,3371.5,3.36203871]
[1768420185529,8.64489268,3372.7,3371.5,2.98026869]
[1768420185696,8.64489268,3372.7,3371.5,5.94625685]
[1768420186100,8.64489268,3372.7,3371.5,2.98026869]
[1768420186324,8.64489268,3372.7,3371.6,0.59463709]
[1768420188114,2.7149256,3372.6,3371.6,0.59463709]
[1768420188334,2.7149256,3372.4,3370.9,2.58426869]
[1768420188539,2.7149256,3372.4,3371.0,2.98026869]
[1768420188736,2.7149256,3372.4,3371.1,5.55059809]
[1768420189141,2.7149256,3372.4,3371.2,5.55055645]
[1768420189340,2.7149256,3372.4,3371.2,2.58426869]
[1768420189638,2.7149256,3372.4,3371.3,0.59467078]
[1768420190359,2.96533523,3372.3,3371.3,0.59467078]
[1768420190760,5.93067046,3372.3,3371.3,0.59467078]
[1768420191357,2.96533523,3372.3,3371.4,2.65359939]
[1768420192332,2.96533523,3372.3,3371.9,0.001]
[1768420192534,5.93067046,3372.3,3371.9,0.001]
[1768420192733,8.46684801,3372.3,3371.9,0.001]
[1768420192933,2.53617755,3372.2,3371.9,0.001]
[1768420194162,2.53617755,3372.0,3370.8,2.91202626]
[1768420194364,2.53617755,3372.0,3369.7,2.96760524]
[1768420194365,2.53617755,3372.0,3370.2,2.65359939]
[1768420194534,0.4,3372.1,3370.2,5.62076458]
[1768420194535,2.53617755,3371.8,3370.2,5.62076458]
[1768420194739,2.53617755,3371.8,3370.4,2.65359939]
[1768420195667,2.53617755,3371.8,3370.6,2.65459939]
[1768420196766,8.46790337,3371.7,3370.6,2.65459939]
[1768420198758,2.53617755,3371.6,3370.6,2.65459939]
[1768420198948,2.53617755,3371.6,3370.6,0.001]
[1768420200545,5.93172582,3371.7,3370.7,2.65359939]
[1768420200749,8.46772745,3371.8,3370.7,2.65359939]
[1768420201338,2.53617755,3371.7,3370.7,2.65359939]
[1768420201539,2.53617755,3371.7,3370.8,0.02966654]
[1768420201768,2.53617755,3371.7,3370.7,2.65359939]
[1768420202139,0.02960784,3371.6,3370.6,0.001]
[1768420202368,2.53617755,3371.5,3370.6,0.001]
[1768420202752,2.53617755,3371.3,3369.9,2.65359939]
[1768420202955,2.53617755,3371.1,3369.9,2.65359939]
[1768420203153,2.53617755,3371.1,3369.6,5.62130973]
[1768420203364,2.53617755,3371.1,3369.7,3.04959939]
[1768420203886,2.53617755,3371.1,3369.4,2.65359939]
[1768420204078,2.53617755,3371.1,3369.5,2.65359939]
[1768420204279,2.53617755,3370.9,3369.5,3.80306289]
[1768420204657,2.53617755,3370.7,3369.4,0.396]
[1768420204856,2.53617755,3370.7,3368.8,3.04959939]
[1768420205090,2.53617755,3370.7,3368.8,2.65359939]
[1768420205268,2.53617755,3370.5,3368.4,6.01831255]
[1768420205457,2.48617755,3370.3,3369.0,2.65359939]
[1768420205677,2.93617755,3370.4,3369.1,2.65359939]
[1768420206492,2.53617755,3370.7,3369.3,2.65359939]
[1768420206809,5.93313358,3370.9,3369.6,2.65359939]
[1768420206961,11.43587792,3370.9,3369.6,2.65359939]
[1768420207162,2.53617755,3370.8,3369.3,3.04959939]
[1768420207398,2.53617755,3370.6,3369.4,0.60176889]
[1768420207796,2.53617755,3370.6,3369.4,3.25536828]
[1768420208096,2.53617755,3370.6,3369.4,6.22325092]
[1768420208403,2.96647878,3371.0,3369.6,2.65359939]
[1768420208556,5.93299122,3371.0,3369.8,2.65359939]
[1768420208760,5.93299122,3371.0,3369.9,0.26535994]
[1768420209094,2.53617755,3370.9,3369.9,0.26535994]
[1768420209395,5.93299122,3371.0,3369.9,2.91895933]
[1768420210595,2.9662044,3371.4,3370.1,2.65359939]
[1768420210889,2.53617755,3371.5,3370.3,2.65359939]
[1768420211091,2.53617755,3371.5,3370.2,1.2813844]
[1768420211286,5.93190176,3371.6,3370.3,2.65359939]
[1768420211586,8.89785264,3371.6,3370.3,2.65359939]
[1768420212382,5.93190176,3371.6,3370.4,2.65359939]
[1768420212584,3.82602406,3374.2,3370.3,2.96707904]
[1768420212585,2.9655111,3372.1,3370.6,2.65359939]
[1768420212889,2.9655111,3372.1,3370.5,0.63133702]
[1768420212890,2.56578539,3372.0,3370.5,3.25526723]
[1768420213099,2.56578539,3372.0,3370.5,0.60166784]
[1768420213388,2.56578539,3372.0,3370.2,2.96711524]
[1768420213389,2.56578539,3372.0,3370.3,0.396]
[1768420213571,2.56578539,3372.0,3370.3,3.04959939]
[1768420213766,2.56578539,3372.0,3370.3,2.65359939]
[1768420214288,2.53617755,3372.0,3370.4,2.65359939]
[1768420214503,5.9310222,3372.1,3370.8,2.65359939]
[1768420214689,5.96063004,3372.1,3371.0,2.65359939]
[1768420214989,5.9310222,3372.1,3371.0,2.65359939]
[1768420216187,5.9310222,3372.1,3370.6,2.65359939]
[1768420216188,2.53617755,3372.0,3370.6,2.65359939]
[1768420216391,2.53617755,3372.0,3370.6,2.91895933]
[1768420216962,5.931374,3371.9,3370.6,2.91895933]
[1768420217398,0.002,3371.8,3370.6,2.91895933]
[1768420218289,2.53817755,3371.8,3370.6,2.91895933]
[1768420219011,5.93172582,3371.7,3370.6,2.91895933]
[1768420219214,5.93172582,3371.7,3370.7,0.33149593]
[1768420220427,2.96586291,3371.7,3370.7,3.06368832]
[1768420221023,0.002,3371.8,3370.8,2.63993849]
[1768420221198,0.002,3371.8,3371.0,2.63993849]
[1768420221403,0.002,3371.8,3371.1,2.90689891]
[1768420221795,0.002,3372.1,3371.7,2.63993849]
[1768420223708,0.002,3372.1,3371.3,3.03593849]
[1768420223913,0.002,3372.1,3371.3,0.396]
[1768420224113,0.002,3372.1,3371.3,3.03593849]
[1768420224315,0.002,3372.1,3371.4,3.26685838]
[1768420224822,0.002,3372.1,3371.5,2.63993849]
[1768420225027,0.002,3372.1,3371.6,2.63993849]
[1768420225495,0.02960784,3372.9,3371.6,2.63993849]
[1768420225691,2.70901879,3372.9,3371.3,3.03593849]
[1768420225901,2.67941095,3372.7,3371.3,3.63616662]
[1768420226301,2.67941095,3372.7,3371.4,2.63993849]
[1768420226508,11.8581762,3373.2,3371.4,2.63993849]
[1768420226714,2.67941095,3373.1,3371.4,2.63993849]
[1768420227232,2.67941095,3372.9,3371.4,2.63993849]
[1768420227397,8.89415949,3373.0,3371.6,2.63993849]
[1768420227599,8.89415949,3373.0,3371.8,2.63993849]
[1768420227821,2.70901879,3372.9,3371.5,0.66023744]
[1768420228131,2.70901879,3372.9,3371.3,3.03593849]
[1768420228424,2.70901879,3372.9,3371.3,0.396]
[1768420229097,2.70901879,3372.9,3371.0,2.63993849]
[1768420229428,0.002,3372.4,3371.6,2.64093849]
[1768420233031,2.68141095,3374.1,3372.3,2.63993849]
[1768420233214,2.96631172,3373.5,3372.5,2.63993849]
[1768420233423,5.93062344,3373.5,3372.5,2.63993849]
[1768420233918,2.96631172,3373.5,3372.5,2.63993849]
[1768420234114,0.02960784,3373.4,3372.5,2.63993849]
[1768420234318,5.93062344,3373.5,3372.5,2.96993172]
[1768420235031,0.002,3373.5,3372.5,2.96993172]
[1768420235620,0.002,3373.5,3372.5,0.32999323]
[1768420235819,0.002,3373.5,3372.3,0.396]
[1768420236132,0.002,3373.5,3371.9,2.63993849]
[1768420236133,2.68141095,3373.5,3371.9,2.63993849]
[1768420236341,2.67941095,3373.3,3371.9,2.63993849]
[1768420236538,0.002,3373.5,3372.0,2.63993849]
[1768420236842,0.002,3373.5,3372.3,2.63993849]
[1768420237011,0.002,3373.5,3372.3,3.20344578]
[1768420237345,0.002,3373.5,3371.6,0.397]
[1768420237346,2.67941095,3373.4,3371.9,5.60554856]
[1768420237508,0.02960784,3373.3,3371.9,2.63993849]
[1768420237706,0.02960784,3373.3,3371.6,2.64093849]
[1768420237707,2.67941095,3373.2,3371.6,2.64093849]
[1768420238015,2.67941095,3373.2,3371.7,2.63993849]
[1768420239239,2.67941095,3372.9,3371.6,0.001]
[1768420239551,2.67941095,3372.7,3371.6,0.001]
[1768420239836,2.67941095,3372.5,3371.6,0.001]
[1768420240718,2.67941095,3372.8,3371.6,0.001]
[1768420241149,8.89495062,3372.7,3371.6,0.001]
[1768420242175,5.92996708,3372.7,3371.9,0.001]
[1768420242868,2.96498354,3372.7,3371.9,0.001]
[1768420243048,2.96660588,3373.2,3371.9,2.64093849]
[1768420243251,5.93114993,3373.2,3371.9,2.64093849]
[1768420243467,11.57516676,3373.2,3371.9,2.64093849]
[1768420243769,11.57516676,3373.2,3371.9,2.90513234]
[1768420244379,2.67941095,3373.1,3371.9,0.26519385]
[1768420244574,2.67941095,3373.1,3371.9,0.001]
[1768420245155,8.89415949,3373.0,3371.9,0.001]
[1768420246269,11.57357044,3373.0,3371.9,0.001]
[1768420246651,2.70901879,3372.9,3371.9,0.001]
[1768420247277,5.92979126,3372.8,3371.9,0.001]
[1768420249484,2.96489563,3372.8,3371.9,0.001]
[1768420250281,5.92969742,3372.9,3371.9,0.001]
[1768420250687,2.68806359,3372.8,3371.9,0.001]
[1768420250858,2.68806359,3372.6,3371.9,0.001]
[1768420251058,2.71767143,3372.5,3371.6,0.001]
[1768420251260,5.93084632,3372.2,3371.6,0.001]
[1768420253176,5.92996708,3372.7,3371.6,2.48361102]
[1768420253376,2.96477163,3373.0,3371.6,2.48361102]
[1768420254896,2.96477163,3373.0,3371.9,0.001]
[1768420256370,5.65283522,3373.0,3371.9,0.001]
[1768420257268,8.61755505,3373.0,3371.9,0.001]
[1768420257485,11.58232668,3373.0,3371.9,0.001]
[1768420257688,5.92949146,3373.0,3371.9,2.48361102]
[1768420257988,5.92949146,3373.0,3372.1,2.48261102]
[1768420258661,5.92949146,3373.0,3371.9,0.001]
[1768420258662,0.02960784,3372.9,3371.9,0.001]
[1768420258873,0.02960784,3372.9,3371.9,0.2494611]
[1768420259080,2.71767143,3372.9,3371.9,0.2494611]
[1768420259291,2.71767143,3372.9,3371.9,0.001]
[1768420259495,5.92979126,3372.8,3371.9,0.001]
[1768420259666,0.02960784,3372.7,3371.9,0.001]
[1768420259868,5.92979126,3372.8,3371.9,0.001]
[1768420260062,5.92979126,3372.8,3371.9,2.48361102]
[1768420260264,0.002,3373.2,3372.0,2.7339379]
[1768420260769,2.68806359,3373.0,3372.0,0.25132688]
[1768420260968,2.71767143,3373.0,3371.9,0.001]
[1768420261473,8.89442319,3372.9,3371.9,0.001]
[1768420264812,2.68806359,3372.8,3371.9,0.001]
[1768420265005,2.68806359,3372.6,3371.9,0.001]
[1768420265201,0.02960784,3372.5,3371.9,0.001]
[1768420265403,2.71767143,3372.5,3370.8,2.48261102]
[1768420265706,2.68806359,3372.3,3370.8,2.48261102]
[1768420266230,2.68806359,3372.3,3370.9,2.48261102]
[1768420266418,5.9304946,3372.4,3370.9,2.51227668]
[1768420266815,2.96498354,3372.7,3371.9,0.001]
[1768420267011,0.002,3372.6,3371.9,2.48361102]
[1768420267226,0.002,3372.6,3372.0,2.73097212]
[1768420269857,0.002,3372.9,3372.3,2.48261102]
[1768420270455,0.002,3372.9,3372.0,2.73097212]
[1768420270963,0.002,3372.9,3372.1,2.48261102]
[1768420272531,0.002,3372.9,3372.1,5.44809892]
[1768420272730,0.002,3372.9,3372.2,3.73792444]
[1768420273730,0.002,3372.9,3372.3,2.48261102]
[1768420276635,0.002,3372.9,3372.4,0.02965247]
[1768420276968,0.002,3372.9,3372.4,2.51226349]
[1768420277629,0.002,3372.9,3372.5,0.02965159]
[1768420277830,0.002,3372.9,3372.6,0.25122626]
[1768420278030,0.002,3373.2,3372.9,2.48261102]
[1768420278540,0.002,3373.2,3372.6,0.25122626]
[1768420279358,0.002,3373.2,3372.3,4.286]
[1768420279755,0.002,3372.9,3372.3,4.286]
[1768420281260,0.002,3372.9,3372.3,0.396]
[1768420283986,2.46788612,3372.9,3372.0,0.2483611]
[1768420284146,2.46788612,3372.9,3371.9,0.001]
[1768420285054,2.46588612,3372.7,3371.9,0.001]
[1768420285284,2.46588612,3372.5,3370.4,2.5369213]
[1768420285463,2.46588612,3372.5,3370.5,0.396]
[1768420285643,2.46588612,3372.3,3370.2,2.9329213]
[1768420285844,2.46588612,3372.3,3370.2,5.90009168]
[1768420286043,2.46588612,3372.3,3370.3,2.96708923]
[1768420286783,2.46588612,3372.1,3370.2,2.5369213]
[1768420287073,2.46588612,3372.1,3370.1,0.396]
[1768420287074,8.39708422,3372.0,3370.6,2.5369213]
[1768420287276,2.46588612,3371.9,3370.6,2.5369213]
[1768420287599,0.4,3372.6,3370.7,2.56658872]
[1768420287869,2.46588612,3372.4,3370.7,2.56658872]
[1768420288643,2.46588612,3372.4,3370.7,2.5369213]
[1768420288870,2.46588612,3372.4,3370.9,2.5369213]
[1768420289047,2.46588612,3372.4,3371.1,2.5369213]
[1768420289249,5.93067046,3372.3,3371.1,2.5369213]
[1768420289468,8.39655658,3372.3,3371.0,0.65265878]
[1768420289641,2.96533523,3372.3,3371.1,2.5369213]
[1768420289846,2.96515937,3372.5,3371.2,2.56658432]
[1768420290056,2.96515937,3372.5,3371.4,2.5369213]
[1768420290247,0.002,3372.9,3371.4,2.5369213]
[1768420290464,2.9649143,3372.8,3371.6,2.5369213]
[1768420290774,0.002,3372.9,3371.3,0.91519623]
[1768420290775,2.96682726,3372.9,3371.8,2.5369213]
[1768420290948,2.96682726,3372.9,3371.9,0.25665799]
[1768420291279,0.002,3372.9,3372.0,2.5369213]
[1768420291446,0.002,3372.9,3372.0,2.56657729]
[1768420291650,0.002,3372.9,3372.2,2.5369213]
[1768420293479,0.002,3372.9,3372.2,5.50233069]
[1768420293656,0.002,3372.9,3372.3,2.5369213]
[1768420293974,0.002,3372.9,3372.2,2.96540939]
[1768420293975,0.002,3373.2,3372.4,2.56657377]
[1768420294150,0.002,3373.2,3372.4,2.5369213]
[1768420294345,0.002,3373.2,3372.6,2.5369213]
[1768420294545,0.002,3373.5,3372.5,1.17296929]
[1768420294546,0.002,3373.5,3372.9,2.5369213]
[1768420295872,0.002,3373.5,3373.0,2.5369213]
[1768420300930,0.002,3374.1,3373.6,2.5369213]
[1768420301055,0.002,3374.6,3373.8,2.5369213]
[1768420301257,0.02960784,3375.5,3374.3,2.5369213]
[1768420301592,2.46588612,3375.6,3374.3,2.5369213]
[1768420301593,2.9628072,3375.2,3374.3,2.5369213]
[1768420301764,2.96298451,3375.0,3374.3,2.5369213]
[1768420301972,0.02960784,3375.5,3374.0,2.5369213]
[1768420301973,5.92522366,3375.4,3374.0,2.5369213]
[1768420302176,2.96196043,3376.2,3373.9,0.396]
[1768420302177,2.46588612,3376.0,3374.4,2.5369213]
[1768420302491,2.96217305,3375.9,3374.6,2.5369213]
[1768420302704,2.96217305,3375.9,3374.7,2.9329213]
[1768420303054,5.9243461,3375.9,3374.7,2.9329213]
[1768420303255,2.96217305,3375.9,3374.7,2.9329213]
[1768420303493,2.46588612,3376.4,3374.7,2.9329213]
[1768420303694,2.46588612,3376.4,3374.8,0.37793278]
[1768420303893,5.92364422,3376.3,3374.9,5.49995984]
[1768420304055,5.92364422,3376.3,3374.9,2.5369213]
[1768420304456,5.92364422,3376.3,3374.9,5.49991733]
[1768420304724,0.002,3375.5,3374.9,5.49991733]
[1768420304866,0.002,3375.5,3375.0,0.92369725]
[1768420306170,2.49549396,3377.6,3376.3,0.1463]
[1768420306570,42.49549396,3377.6,3374.9,2.5369213]
[1768420306775,2.46588612,3377.5,3375.2,2.96272363]
[1768420306982,2.46588612,3377.5,3375.2,2.5369213]
[1768420307272,14.8029724,3377.7,3375.1,3.3588402]
[1768420307273,2.46588612,3377.6,3376.0,2.5369213]
[1768420307494,2.46588612,3377.6,3376.1,3.35793431]
[1768420307873,2.46588612,3377.6,3376.1,0.396]
[1768420308200,2.68257143,3377.3,3375.6,2.5369213]
[1768420308369,2.68257143,3377.3,3375.8,2.96219555]
[1768420308569,2.68257143,3377.3,3375.7,2.9329213]
[1768420308775,2.68257143,3377.3,3375.8,3.55177586]
[1768420309175,0.21668531,3377.3,3376.2,2.5369213]
[1768420309387,2.46888612,3378.2,3376.1,8.88599271]
[1768420309388,0.003,3378.2,3377.4,0.85651854]
[1768420309704,2.46588612,3378.4,3376.4,0.32846754]
[1768420310004,2.46588612,3378.2,3376.5,0.396]
[1768420310176,2.46588612,3377.8,3376.6,2.96155896]
[1768420310574,2.46588612,3377.8,3375.8,1.44654078]
[1768420310769,2.49016439,3377.6,3376.2,2.96184048]
[1768420311001,2.49016439,3377.6,3376.1,2.9619208]
[1768420311184,2.49016439,3377.6,3375.8,0.396]
[1768420311388,2.49016439,3377.6,3376.1,2.96199059]
[1768420311585,2.49016439,3377.6,3376.2,2.96184287]
[1768420311797,2.49016439,3377.4,3376.2,2.96184287]
[1768420312306,2.96094513,3377.3,3375.9,5.9243461]
[1768420312676,8.41205465,3377.3,3375.9,2.96217305]
[1768420312876,2.51977223,3377.2,3375.0,1.91890226]
[1768420313215,2.49016439,3377.2,3375.3,0.396]
[1768420313378,2.49016439,3377.0,3375.3,3.35868387]
[1768420313579,2.49016439,3377.0,3375.4,2.96261056]
[1768420313883,2.49016439,3376.8,3375.3,3.35863135]
[1768420314082,2.49016439,3376.6,3375.2,3.39103234]
[1768420314281,2.49016439,3376.4,3375.2,0.42825374]
[1768420314482,2.49016439,3376.2,3375.1,0.396]
[1768420314880,2.49016439,3376.2,3375.1,3.35886098]
[1768420315083,2.49016439,3376.2,3375.2,2.96275527]
[1768420315286,2.96164667,3376.5,3375.3,0.02962699]
[1768420315670,2.49016439,3376.6,3375.3,0.02962699]
[1768420315880,2.96149556,3376.7,3375.4,0.72282387]
[1768420316304,2.49016439,3377.0,3375.5,8.91719745]
[1768420316486,2.49016439,3377.0,3375.5,8.88757221]
[1768420316799,5.45140035,3377.0,3375.5,5.92504814]
[1768420316988,2.49016439,3377.0,3376.5,0.001]
[1768420317597,5.45138751,3377.0,3376.5,0.001]
[1768420318501,2.49016439,3377.0,3376.5,0.001]
[1768420318680,2.49016439,3377.5,3376.5,0.001]
[1768420319199,2.49016439,3377.3,3376.5,0.001]
[1768420320509,2.49016439,3377.1,3376.5,0.001]
[1768420320812,2.49016439,3376.9,3376.5,0.001]
[1768420321888,2.49016439,3376.7,3374.9,2.39073654]
[1768420322189,2.49016439,3376.5,3374.9,2.39073654]
[1768420322394,2.49016439,3376.3,3374.9,2.62981019]
[1768420322621,0.4,3376.6,3374.9,2.62981019]
[1768420322622,2.49016439,3376.1,3374.9,2.62981019]
[1768420323122,2.49016439,3376.1,3375.0,0.02962962]
[1768420323433,2.49016439,3376.1,3374.9,5.59283903]
[1768420324086,2.49016439,3376.1,3374.9,2.62981019]
[1768420324404,2.49016439,3376.1,3375.0,0.26298102]
[1768420324611,2.49016439,3375.9,3375.0,0.26298102]
[1768420326603,2.96226079,3375.8,3375.0,0.26298102]
[1768420326804,2.49016439,3375.7,3375.0,0.26298102]
[1768420328588,5.9248726,3375.6,3374.9,2.39073654]
[1768420328798,2.49016439,3375.5,3374.3,3.35957659]
[1768420328999,2.96226079,3375.8,3375.3,0.001]
[1768420329000,5.45242518,3375.8,3375.3,0.001]
[1768420329616,2.49016439,3375.7,3375.3,0.001]
[1768420330309,2.79448663,3375.7,3375.3,0.001]
[1768420330497,2.49016439,3375.7,3375.3,0.001]
[1768420330697,2.49016439,3375.5,3375.3,0.001]
[1768420330905,2.49016439,3375.5,3374.3,0.396]
[1768420331712,2.49016439,3375.9,3374.4,0.02963489]
[1768420331897,2.49016439,3375.9,3374.5,5.92680396]
[1768420332100,2.49016439,3375.9,3374.6,0.6322804]
[1768420332405,2.49016439,3375.9,3374.3,0.396]
[1768420332710,2.49016439,3375.7,3373.6,2.96419255]
[1768420332926,2.49016439,3375.7,3373.7,0.02964104]
[1768420333212,2.49016439,3375.7,3373.6,2.96419255]
[1768420333396,2.49016439,3375.7,3373.6,8.89257765]
[1768420333597,2.49016439,3375.5,3373.7,1.88832292]
[1768420334112,2.49016439,3375.5,3373.8,0.396]
[1768420334415,2.49016439,3375.5,3373.9,0.02963928]
[1768420335319,2.49016439,3375.3,3374.0,2.96384113]
[1768420335618,2.49016439,3375.3,3374.1,0.02963753]
[1768420335787,2.49016439,3375.3,3374.2,0.59573198]
[1768420337315,2.49016439,3375.1,3373.8,0.396]
[1768420337822,2.49016439,3375.1,3373.8,3.35997692]
[1768420338118,2.49016439,3375.1,3373.8,0.396]
[1768420338319,2.49016439,3375.1,3373.0,2.9646687]
[1768420338490,2.49016439,3375.1,3372.8,2.96487383]
[1768420338491,2.49016439,3375.1,3372.8,0.396]
[1768420338686,2.49016439,3374.9,3372.8,0.396]
[1768420338993,2.49016439,3374.9,3373.0,2.96467171]
[1768420339193,2.49016439,3374.9,3373.1,0.02964631]
[1768420339515,2.49016439,3374.7,3372.8,3.36088541]
[1768420340116,2.49016439,3374.7,3372.8,6.32578104]
[1768420340317,2.61300805,3374.5,3372.9,0.63554309]
[1768420341236,2.61300805,3374.5,3373.4,0.001]
[1768420341521,2.76632437,3374.3,3373.4,0.001]
[1768420341914,2.76632437,3374.3,3371.9,0.22302972]
[1768420342098,2.76632437,3374.1,3371.9,0.61902972]
[1768420342426,2.76632437,3374.1,3371.9,3.58465625]
[1768420342609,2.76632437,3373.7,3371.9,0.396]
[1768420342816,22.53444099,3374.4,3371.9,0.396]
[1768420342817,2.76632437,3373.5,3371.9,0.396]
[1768420343019,2.76632437,3373.3,3371.9,0.396]
[1768420343195,2.76632437,3373.1,3371.9,0.396]
[1768420343525,2.76632437,3372.9,3371.9,0.396]
[1768420343710,2.76632437,3372.9,3371.4,0.001]
[1768420344024,2.76632437,3372.9,3371.8,2.96577088]
[1768420344332,2.96463408,3373.1,3371.9,2.96566582]
[1768420344492,5.73095845,3373.1,3372.0,0.59313614]
[1768420344692,8.69559253,3373.1,3372.0,0.59313614]
[1768420345327,8.69559253,3373.1,3372.0,0.42376501]
[1768420346200,8.69559253,3373.1,3372.0,3.38936291]
[1768420346514,5.73095845,3373.1,3372.0,3.38936291]
[1768420346825,5.73096805,3373.1,3372.1,0.63550494]
[1768420347425,2.76632437,3373.1,3372.1,0.63550494]
[1768420347605,2.76632437,3373.1,3372.0,5.93119695]
[1768420347810,2.76632437,3373.9,3372.1,0.99845073]
[1768420348009,2.76632437,3373.9,3372.1,0.96879562]
[1768420348231,0.4,3374.5,3372.3,5.93067046]
[1768420348232,2.76632437,3373.7,3372.3,5.93067046]
[1768420348401,5.92803366,3373.8,3370.9,2.69874957]
[1768420348402,2.76632437,3373.1,3370.9,2.69874957]
[1768420348603,2.76632437,3373.1,3371.2,2.69874957]
[1768420349123,2.76632437,3372.9,3370.8,2.69874957]
[1768420349309,2.76632437,3372.9,3370.7,3.36267537]
[1768420349310,2.76632437,3372.7,3370.7,0.396]
[1768420349516,2.76632437,3372.7,3370.5,3.36285897]
[1768420349698,2.76632437,3372.7,3370.6,2.96682658]
[1768420349904,2.76632437,3372.5,3370.5,3.36284889]
[1768420350098,2.76632437,3372.5,3370.5,0.396]
[1768420350336,0.4,3372.8,3370.5,2.96691315]
[1768420350337,2.76632437,3372.3,3370.5,2.96691315]
[1768420350504,2.76632437,3372.3,3370.4,5.66572451]
[1768420350941,2.76632437,3372.3,3370.4,2.69874957]
[1768420351110,2.76632437,3372.3,3370.5,2.96688599]
[1768420351504,2.76632437,3372.3,3370.4,2.69874957]
[1768420351705,2.76632437,3372.3,3370.4,5.66569384]
[1768420352543,11.66259385,3372.2,3370.5,2.96691247]
[1768420353106,11.66259385,3372.2,3371.7,0.001]